bitfinex-derivatives/quotes_BNBF0:USTF0_20250315
["timestamp","ask_amount","ask_price","bid_price","bid_amount"]
[1742043777538,0.28278929,597.67,596.78,10.716]
[1742043777838,0.28278929,597.66,596.78,10.716]
[1742043778037,0.28278929,597.68,596.78,10.716]
[1742043778238,0.28278929,597.67,596.78,10.716]
[1742043778432,0.28278929,597.68,596.78,10.716]
[1742043779738,0.33462162,597.69,596.78,10.716]
[1742043779938,0.2827836,597.68,596.78,10.716]
[1742043781042,0.33462162,597.69,596.78,10.716]
[1742043781339,0.28277998,597.68,596.78,10.716]
[1742043786244,0.2827743,597.67,596.78,10.716]
[1742043786438,0.2827743,597.66,596.78,10.716]
[1742043786838,0.2827743,597.65,596.78,10.716]
[1742043787037,0.2827743,597.68,596.78,10.716]
[1742043787242,0.2827743,597.67,596.78,10.716]
[1742043787543,0.2827743,597.66,596.78,10.716]
[1742043787736,0.2827743,597.65,596.78,10.716]
[1742043787940,0.2827743,597.64,596.78,10.716]
[1742043788137,0.33462162,597.69,596.78,10.716]
[1742043788138,0.2827743,597.63,596.78,10.716]
[1742043788342,0.2827743,597.68,596.78,10.716]
[1742043788545,0.33462162,597.69,596.78,10.716]
[1742043788546,0.28277524,597.67,596.78,10.716]
[1742043788742,0.28277524,597.68,596.78,10.716]
[1742043788945,0.28277524,597.67,596.78,10.716]
[1742043789243,0.28277524,597.66,596.78,10.716]
[1742043789439,0.28277524,597.68,596.78,10.716]
[1742043794049,0.28273703,597.67,596.78,10.716]
[1742043794249,0.28273703,597.68,596.78,10.716]
[1742043794448,0.28273703,597.67,596.78,10.716]
[1742043794749,0.28273703,597.66,596.78,10.716]
[1742043794944,0.28273703,597.68,596.78,10.716]
[1742043796650,2.55294295,597.64,596.78,10.716]
[1742043796850,0.28273703,597.63,596.78,10.716]
[1742043798343,4.7524986,597.63,596.78,10.716]
[1742043798553,0.28273703,597.62,596.78,10.716]
[1742043798752,0.28273703,597.63,596.78,10.716]
[1742043798949,0.28273703,597.62,596.78,10.716]
[1742043799148,0.28273703,597.63,596.78,10.716]
[1742043799353,0.28273703,597.62,596.78,10.716]
[1742043799554,2.55294295,597.64,596.78,10.716]
[1742043799555,0.28273703,597.63,596.78,10.716]
[1742043799754,0.28272752,597.62,596.78,10.716]
[1742043799954,0.28272752,597.63,596.78,10.716]
[1742043801462,0.28272752,597.68,596.78,10.716]
[1742043801663,0.28272752,597.67,596.78,10.716]
[1742043801860,0.28272752,597.66,596.78,7.761]
[1742043802059,0.28272752,597.68,596.78,7.761]
[1742043802265,0.28272752,597.67,596.78,6.431]
[1742043802462,0.28272752,597.68,596.78,6.431]
[1742043802658,0.28272752,597.67,596.78,6.238]
[1742043802857,0.28272752,597.66,596.78,4.634]
[1742043803063,0.28272752,597.65,596.78,4.634]
[1742043803258,0.28272752,597.68,596.78,3.603]
[1742043803464,0.28272752,597.67,596.78,2.221]
[1742043803665,0.28272752,597.66,596.78,2.221]
[1742043803966,0.28272752,597.65,596.78,2.221]
[1742043804161,0.28272752,597.64,596.78,2.221]
[1742043804366,0.28272752,597.68,596.78,1.007]
[1742043804565,0.28272752,597.67,596.78,1.007]
[1742043804766,0.28272752,597.68,596.78,1.007]
[1742043805463,0.28272752,597.68,596.4,0.29149635]
[1742043805667,0.28272752,597.68,596.42,0.33533416]
[1742043805867,0.28274669,597.67,596.42,0.33533416]
[1742043806067,0.28274669,597.66,596.42,0.33533416]
[1742043806566,0.28274669,597.65,596.42,0.33533416]
[1742043806767,0.28274669,597.68,596.42,0.33533416]
[1742043806965,0.28274669,597.67,596.42,0.33533416]
[1742043807166,0.28274669,597.68,596.42,0.33533416]
[1742043807366,0.33462162,597.69,596.42,0.33533416]
[1742043807367,0.28274669,597.66,596.42,0.33533416]
[1742043807565,0.28274669,597.65,596.42,0.33533416]
[1742043807763,0.28274669,597.68,596.42,0.33533416]
[1742043810764,0.33462162,597.69,596.42,0.33533416]
[1742043810963,0.28274402,597.68,596.42,0.33533416]
[1742043812570,0.33462162,597.69,596.42,0.33533416]
[1742043812769,0.28272728,597.68,596.42,0.33533416]
[1742043813471,0.28272167,597.67,596.42,0.33533416]
[1742043813671,0.28272167,597.68,596.42,0.33533416]
[1742043813972,0.28272167,597.67,596.42,0.33533416]
[1742043814169,0.28272167,597.68,596.42,0.33533416]
[1742043814370,0.28272167,597.67,596.42,0.33533416]
[1742043814571,0.28272167,597.68,596.42,0.33533416]
[1742043818277,0.33462162,597.69,596.42,0.33533416]
[1742043818477,0.28272202,597.68,596.42,0.33533416]
[1742043824680,0.28272202,597.68,596.42,0.33533416]
[1742043834885,0.33462162,597.69,596.42,0.33533416]
[1742043835111,0.28282026,597.68,596.42,0.33533416]
[1742043840690,2.55294295,598.46,596.42,0.33533416]
[1742043840886,0.33420225,598.44,596.42,0.33533416]
[1742043841086,0.28281471,598.43,596.42,0.33533416]
[1742043841392,0.33421901,598.41,596.42,0.33533416]
[1742043841583,0.28281471,598.4,596.42,0.33533416]
[1742043841786,0.33423576,598.38,596.42,1.79033416]
[1742043842091,0.28281471,598.37,596.42,1.79033416]
[1742043842790,0.29141457,598.36,596.42,1.79033416]
[1742043843192,0.33425811,598.34,596.42,1.79033416]
[1742043843393,0.28281471,598.33,596.42,1.79033416]
[1742043843593,0.28281471,598.33,596.42,3.29033416]
[1742043843892,0.33427487,598.31,596.42,3.29033416]
[1742043844092,0.28281471,598.3,596.42,3.29033416]
[1742043844694,0.33429163,598.28,596.42,3.29033416]
[1742043844892,0.28281471,598.27,596.42,3.29033416]
[1742043845093,0.33430839,598.25,596.42,3.29033416]
[1742043845294,0.28281471,598.24,596.42,3.29033416]
[1742043845496,0.33432516,598.22,596.42,3.29033416]
[1742043845691,0.28281471,598.21,596.42,3.29033416]
[1742043845890,0.33434193,598.19,596.42,3.29033416]
[1742043846088,0.28281471,598.18,596.42,3.29033416]
[1742043846292,0.33435311,598.17,596.42,3.29033416]
[1742043846488,0.28281471,598.16,596.42,3.29033416]
[1742043846688,0.33436428,598.15,596.42,3.29033416]
[1742043846893,0.28281471,598.14,596.42,3.29033416]
[1742043847095,0.33437547,598.13,596.42,3.29033416]
[1742043847295,0.28281471,598.12,596.42,3.29033416]
[1742043847589,0.33438665,598.11,596.42,3.29033416]
[1742043847791,0.28281471,598.1,596.42,3.29033416]
[1742043847992,0.33439783,598.09,596.42,3.29033416]
[1742043848191,0.28271634,598.08,596.42,3.29033416]
[1742043848392,0.33440901,598.07,596.42,3.29033416]
[1742043848590,0.28271634,598.06,596.42,3.29033416]
[1742043849095,0.28271634,598.06,596.42,4.44533416]
[1742043849997,0.28270264,598.05,596.42,4.44533416]
[1742043850197,0.28270264,598.06,596.42,4.44533416]
[1742043850396,0.28270264,598.05,596.42,4.44533416]
[1742043850595,0.28270264,598.06,596.42,4.44533416]
[1742043850791,0.2914524,598.05,596.42,4.44533416]
[1742043850992,0.28270264,598.04,596.43,0.30774466]
[1742043851400,0.28270264,598.04,596.43,1.50874466]
[1742043851593,0.28270264,598.04,596.44,0.30774466]
[1742043851994,0.28270264,598.04,596.46,0.33531167]
[1742043852199,0.28270264,598.04,596.47,0.30774466]
[1742043852795,0.28270264,598.04,596.49,0.3352948]
[1742043853102,0.28270264,598.04,596.5,0.30774466]
[1742043853301,0.28270264,598.04,596.52,0.33527794]
[1742043853497,0.28270264,598.04,596.53,0.30774466]
[1742043853895,0.28270264,598.03,596.53,0.30774466]
[1742043854095,0.28270264,598.02,596.53,0.30774466]
[1742043854302,0.28270264,598.04,596.55,0.33526108]
[1742043854601,0.28270264,598.03,596.56,0.30774466]
[1742043854901,0.28270264,598.02,596.57,0.33524984]
[1742043855101,0.28270264,598.06,596.58,0.30774466]
[1742043855301,0.28270264,598.06,596.59,0.3352386]
[1742043855302,0.28270264,598.05,596.59,0.3352386]
[1742043855501,0.28270264,598.05,596.6,0.30774466]
[1742043855797,0.3344146,598.06,596.61,0.33522736]
[1742043856000,0.28272334,598.05,596.62,0.30770252]
[1742043856196,0.28272334,598.05,596.63,0.33521613]
[1742043856399,0.28272334,598.04,596.64,0.30770252]
[1742043856605,0.28272334,598.05,596.65,0.33520489]
[1742043856805,0.28272334,598.04,596.66,0.30770252]
[1742043857004,0.3344146,598.06,596.66,0.30770252]
[1742043857005,0.28272334,598.03,596.67,0.33519365]
[1742043857306,0.28272334,598.02,596.67,0.33519365]
[1742043857504,0.28272334,598.05,596.67,0.33519365]
[1742043857705,0.28271453,598.04,596.67,0.33519365]
[1742043857907,0.28271453,598.03,596.67,0.33519365]
[1742043858199,0.28271453,598.05,596.67,0.33519365]
[1742043858405,0.28271173,598.04,596.67,0.33519365]
[1742043858605,0.28271173,598.03,596.67,0.33519365]
[1742043858803,0.28271173,598.05,596.67,0.33519365]
[1742043859106,0.28271173,598.04,596.67,0.52819365]
[1742043859406,0.28271173,598.03,596.67,0.52819365]
[1742043859606,0.28271173,598.02,596.67,0.52819365]
[1742043859803,0.28271173,598.05,596.67,0.52819365]
[1742043860006,0.28271173,598.04,596.67,1.61819365]
[1742043860205,0.28271173,598.03,596.67,1.61819365]
[1742043860410,0.28271173,598.02,596.67,1.61819365]
[1742043860611,0.28271173,598.05,596.68,0.30769631]
[1742043860807,0.28271173,598.04,596.69,0.33518242]
[1742043861013,0.28271173,598.03,596.69,0.33518242]
[1742043861312,0.28271173,598.02,596.69,0.33518242]
[1742043861510,0.3344146,598.06,596.7,0.30769657]
[1742043861706,0.2827172,598.05,596.71,0.6428682]
[1742043861907,0.2827172,598.04,596.72,0.33516557]
[1742043862107,0.2827172,598.03,596.72,0.33516557]
[1742043862313,0.2827172,598.02,596.72,0.33516557]
[1742043862513,0.2827172,598.05,596.72,0.33516557]
[1742043862711,0.2827172,598.04,596.72,0.33516557]
[1742043862908,0.2827172,598.05,596.72,0.33516557]
[1742043863109,0.2827172,598.04,596.72,0.33516557]
[1742043863307,0.2827172,598.04,596.73,1.449]
[1742043863515,0.2827172,598.03,596.74,0.33515433]
[1742043863711,0.2827172,598.05,596.74,0.33515433]
[1742043863914,0.2827172,598.04,596.74,0.33515433]
[1742043864109,0.2827172,598.03,596.74,0.33515433]
[1742043864310,0.2827172,598.05,596.74,0.33515433]
[1742043864512,0.2827172,598.04,596.74,0.33515433]
[1742043864714,0.2827172,598.05,596.74,0.33515433]
[1742043868318,0.2827172,598.05,596.75,1.252]
[1742043868519,0.2827172,598.05,596.76,0.3351431]
[1742043869620,0.2827172,598.05,596.77,1.397]
[1742043869816,0.2827172,598.05,596.78,0.33513187]
[1742043870014,0.28268954,598.04,596.78,0.33513187]
[1742043870217,0.28268954,598.03,596.78,0.33513187]
[1742043870415,0.28268954,598.02,596.78,0.33513187]
[1742043870617,0.28268954,598.05,596.78,0.33513187]
[1742043870818,0.28268954,598.04,596.78,0.33513187]
[1742043871015,0.28267888,598.03,596.78,0.33513187]
[1742043871219,0.28267888,598.05,596.78,0.33513187]
[1742043871421,0.28267888,598.04,596.78,0.33513187]
[1742043871617,0.28267888,598.05,596.78,0.33513187]
[1742043872820,0.28267719,598.04,596.78,0.33513187]
[1742043873119,0.28267719,598.03,596.78,0.33513187]
[1742043873315,0.28267719,598.05,596.78,0.33513187]
[1742043874023,0.28267719,598.05,596.78,3.51313187]
[1742043874920,0.28267719,598.05,596.78,4.60613187]
[1742043878426,0.3344146,598.06,596.78,4.60613187]
[1742043878627,0.28265327,598.05,596.78,4.60613187]
[1742043882424,0.28265327,598.05,596.78,4.79913187]
[1742043884028,0.28265327,598.05,596.79,0.3075952]
[1742043884225,0.28265327,598.05,596.81,0.33511502]
[1742043884530,0.28265327,598.05,596.82,0.3075952]
[1742043884829,0.28265327,598.05,596.83,0.33510379]
[1742043886133,0.28266018,598.04,596.83,0.33510379]
[1742043886431,0.28266018,598.03,596.83,0.33510379]
[1742043886732,0.28266018,598.02,596.83,0.33510379]
[1742043886934,0.28266018,598.05,596.83,0.33510379]
[1742043887228,0.28266018,598.04,596.83,0.33510379]
[1742043887433,0.28266018,598.05,596.84,1.148]
[1742043887631,0.28266018,598.04,596.85,0.33509256]
[1742043887825,0.28268144,598.03,596.85,0.33509256]
[1742043888030,0.3344146,598.06,596.85,0.33509256]
[1742043888031,0.28268144,598.05,596.85,0.33509256]
[1742043888227,0.28268144,598.04,596.85,0.33509256]
[1742043888427,0.28268144,598.05,596.85,0.33509256]
[1742043888632,0.28268144,598.04,596.85,0.33509256]
[1742043888932,0.28268144,598.05,596.85,0.33509256]
[1742043889233,0.28268144,598.04,596.85,0.33509256]
[1742043889434,0.28268144,598.05,596.85,0.33509256]
[1742043890433,0.28268144,598.05,596.86,1.187]
[1742043890633,0.28268144,598.05,596.87,0.33508134]
[1742043891334,0.28268144,598.05,596.88,1.328]
[1742043891635,0.28268144,598.05,596.89,0.33507011]
[1742043894433,0.61683344,598.53,596.91,0.33505888]
[1742043894634,0.61683902,598.52,596.91,0.33505888]
[1742043894832,0.2912402,598.59,596.91,0.33505888]
[1742043894833,0.61684461,598.51,596.91,0.33505888]
[1742043895039,0.61685019,598.5,596.91,0.33505888]
[1742043895337,0.61685577,598.49,596.91,0.33505888]
[1742043895542,0.61686136,598.48,596.91,0.33505888]
[1742043895737,0.61686694,598.47,596.91,0.33505888]
[1742043896040,0.61687253,598.46,596.91,0.33505888]
[1742043896239,0.61687811,598.45,596.91,0.33505888]
[1742043896540,0.61688369,598.44,596.92,0.30751501]
[1742043896736,0.61688928,598.43,596.93,0.33504766]
[1742043896937,0.28268144,598.42,596.94,0.30751501]
[1742043897136,0.33420784,598.43,596.95,0.33503643]
[1742043897337,0.28262181,598.42,596.95,0.33503643]
[1742043898038,0.28262181,598.42,596.96,0.30751219]
[1742043898240,0.28262181,598.42,596.97,0.33502521]
[1742043898440,0.28262181,598.42,596.98,0.30751219]
[1742043898741,0.28262181,598.42,596.99,0.33501398]
[1742043900835,0.28262181,598.42,597.0,0.947]
[1742043901038,0.28262181,598.42,597.01,0.33500276]
[1742043903339,0.28262181,598.42,597.02,1.374]
[1742043903538,0.28262181,598.42,597.03,0.33499154]
[1742043905947,0.28262181,598.42,597.03,0.52799154]
[1742043908346,0.28262181,598.42,597.03,0.193]
[1742043908651,0.28262181,598.41,597.03,0.193]
[1742043908852,0.28262181,598.67,597.03,1.361]
[1742043909052,0.28262181,598.66,597.03,1.361]
[1742043909252,0.29119999,598.42,597.03,1.361]
[1742043909450,0.28262181,598.41,597.03,1.361]
[1742043909646,0.28262181,598.67,597.03,1.361]
[1742043909947,0.28262181,598.66,597.03,1.361]
[1742043910147,0.28262181,598.65,597.03,1.361]
[1742043910350,0.28262181,598.64,597.03,1.361]
[1742043910555,0.28262181,598.63,597.03,1.361]
[1742043910752,0.28262181,598.62,597.03,1.361]
[1742043911052,0.28262181,598.61,597.03,1.361]
[1742043911253,0.28262181,598.6,597.03,1.361]
[1742043911453,0.28262181,598.75,597.03,1.361]
[1742043911754,0.29118902,598.59,597.03,1.361]
[1742043911954,0.28262181,598.58,597.03,1.361]
[1742043912254,0.28262181,598.57,597.03,1.361]
[1742043912457,0.28262181,598.75,597.03,1.361]
[1742043912653,0.28262181,598.74,597.03,1.361]
[1742043912846,0.28262181,598.73,597.03,1.361]
[1742043913049,0.28262181,598.72,597.03,1.361]
[1742043913252,0.28262181,598.71,597.03,1.361]
[1742043913451,0.28262181,598.7,597.03,1.361]
[1742043913649,0.28262181,598.69,597.03,1.361]
[1742043913854,0.28262181,598.68,597.03,1.361]
[1742043914055,0.28262181,598.67,597.03,1.361]
[1742043914256,0.28262181,598.66,597.03,2.93]
[1742043914457,0.28262181,598.65,597.03,2.93]
[1742043914649,0.28262181,598.64,597.03,2.93]
[1742043914849,0.28262181,598.63,597.03,2.93]
[1742043915050,0.28262181,598.62,597.03,2.93]
[1742043915253,0.28262181,598.61,597.03,2.93]
[1742043915555,0.28262181,598.6,597.03,2.93]
[1742043915757,0.28262181,598.59,597.03,2.93]
[1742043915950,0.28262181,598.69,597.03,2.93]
[1742043916155,0.28262181,598.68,597.03,2.93]
[1742043916350,0.28262181,598.67,597.03,2.93]
[1742043916556,0.28262181,598.66,597.03,2.93]
[1742043916757,0.28262181,598.65,597.03,2.93]
[1742043917056,0.28262181,598.64,597.03,2.93]
[1742043917256,0.28262181,598.63,597.03,2.93]
[1742043917456,0.28262181,598.62,597.03,2.93]
[1742043917753,0.28237788,598.61,597.03,4.371]
[1742043918056,0.28237788,598.6,597.03,4.371]
[1742043918258,0.28237788,598.59,597.03,4.371]
[1742043918450,0.28237788,598.58,597.03,4.371]
[1742043918658,0.28237788,598.57,597.03,4.371]
[1742043918857,0.28237788,598.56,597.03,4.371]
[1742043919058,0.28237788,598.55,597.03,4.371]
[1742043919259,0.28237788,598.55,597.03,5.514]
[1742043919458,0.28237788,598.54,597.03,5.514]
[1742043919654,0.28237788,598.53,597.03,5.514]
[1742043919858,0.28237788,598.52,597.03,5.514]
[1742043920056,0.28237788,598.51,597.03,5.514]
[1742043920254,0.28237788,598.5,597.03,5.514]
[1742043920457,0.28237788,598.49,597.03,6.861]
[1742043920655,0.28237788,598.48,597.03,6.861]
[1742043920855,0.28237788,598.47,597.03,6.861]
[1742043921061,0.28237788,598.46,597.03,6.861]
[1742043921363,0.28237788,598.45,597.03,6.861]
[1742043921660,0.28237788,598.44,597.03,7.975]
[1742043921960,0.28237788,598.43,597.03,9.508]
[1742043922156,0.28237788,598.42,597.03,9.508]
[1742043922461,0.28237788,598.41,597.03,9.508]
[1742043922655,0.28237788,598.4,597.03,9.508]
[1742043922861,0.28237788,598.39,597.03,9.508]
[1742043923059,0.28237788,598.4,597.03,9.508]
[1742043923258,0.28237788,598.39,597.03,9.508]
[1742043923656,2.55294295,598.41,597.03,9.508]
[1742043923657,0.28237788,598.38,597.03,9.508]
[1742043923857,0.28237788,598.37,597.03,9.508]
[1742043924060,8.0828115,600.21,597.03,9.508]
[1742043924061,0.28237788,598.4,597.03,9.508]
[1742043924261,0.28237788,598.39,597.03,9.508]
[1742043924462,2.55294295,598.68,597.03,9.508]
[1742043924463,0.28237788,598.67,597.03,9.508]
[1742043924659,0.28237788,598.66,597.03,9.508]
[1742043924865,0.28237788,598.65,597.03,9.508]
[1742043925158,0.28237788,598.64,597.03,9.508]
[1742043925360,0.28237788,598.63,597.03,11.319]
[1742043925765,0.28237788,598.62,597.03,11.319]
[1742043926070,0.28237788,598.61,597.03,11.319]
[1742043926370,0.28237788,598.6,597.03,11.319]
[1742043926571,3.03371122,598.86,597.03,11.319]
[1742043926572,0.28237788,598.59,597.03,11.319]
[1742043926774,0.28237788,598.58,597.03,11.319]
[1742043926970,0.28237788,598.63,597.03,11.319]
[1742043927167,0.28237788,598.62,597.03,11.319]
[1742043927371,0.28237788,598.61,597.03,11.319]
[1742043927567,0.28237788,598.6,597.03,11.319]
[1742043927766,0.28237788,598.59,597.03,11.319]
[1742043928073,0.28237788,598.58,597.03,11.319]
[1742043928270,0.28237788,598.57,597.03,11.319]
[1742043928470,0.28237788,598.56,597.03,11.319]
[1742043928671,0.28237788,598.66,597.03,11.319]
[1742043928969,0.28237788,598.65,597.03,11.319]
[1742043929274,0.28237788,598.64,597.03,11.319]
[1742043929475,0.28237788,598.63,597.03,11.319]
[1742043929679,0.28237788,598.62,597.03,11.319]
[1742043929877,0.28237788,598.61,597.03,11.319]
[1742043930178,0.28237788,598.6,597.03,11.319]
[1742043930377,0.28237788,598.59,597.03,11.319]
[1742043930673,0.28237788,598.58,597.03,11.319]
[1742043930877,0.28237788,598.57,597.03,11.319]
[1742043931275,0.28237788,598.56,597.03,11.319]
[1742043931477,2.55294295,598.6,597.03,11.319]
[1742043931677,0.28237788,598.59,597.03,11.319]
[1742043931978,0.28237788,598.58,597.03,11.319]
[1742043932178,0.28237788,598.57,597.03,11.319]
[1742043932381,0.28237788,598.56,597.03,11.319]
[1742043932681,0.28237788,598.55,597.03,11.319]
[1742043932974,0.28237788,598.54,597.03,11.319]
[1742043933179,0.28237788,598.53,597.03,11.319]
[1742043933379,0.28237788,598.52,597.03,11.319]
[1742043933577,0.28237788,598.51,597.03,11.319]
[1742043933779,0.28237788,598.5,597.03,11.319]
[1742043934177,0.28237788,598.49,597.03,11.319]
[1742043934375,0.28237788,598.48,597.03,11.319]
[1742043934680,0.28237788,598.47,597.03,11.319]
[1742043934877,0.28237788,598.46,597.03,11.319]
[1742043935079,0.28237788,598.45,597.03,11.319]
[1742043935274,0.28237788,598.44,597.03,11.319]
[1742043935477,0.28237788,598.43,597.03,11.319]
[1742043935681,0.28237788,598.42,597.03,11.319]
[1742043935981,0.28237788,598.41,597.03,11.319]
[1742043936283,0.28237788,598.4,597.03,11.319]
[1742043936582,0.28237788,598.39,597.04,0.33498593]
[1742043936778,0.28237788,598.38,597.04,0.33498593]
[1742043936977,0.28237788,598.37,597.04,0.33498593]
[1742043937175,0.28237788,598.36,597.04,0.33498593]
[1742043937378,0.28237788,598.35,597.04,0.33498593]
[1742043937575,0.28237788,598.34,597.04,0.33498593]
[1742043937776,0.28237788,598.33,597.04,0.33498593]
[1742043937974,0.28237788,598.32,597.04,0.33498593]
[1742043938175,0.28237788,598.31,597.04,0.33498593]
[1742043938375,0.28237788,598.3,597.04,0.33498593]
[1742043938575,2.55294295,598.31,597.04,0.33498593]
[1742043938881,0.28237788,598.3,597.04,0.33498593]
[1742043939081,0.28237788,598.3,597.04,1.76198593]
[1742043939679,0.28237788,598.3,597.04,1.95498593]
[1742043940577,0.28237788,598.3,597.04,3.34798593]
[1742043940784,0.28237788,598.53,597.04,3.34798593]
[1742043940985,0.33415758,598.52,597.04,3.34798593]
[1742043941182,0.28237788,598.51,597.04,3.34798593]
[1742043941383,0.33416875,598.5,597.04,3.34798593]
[1742043941683,0.28237788,598.49,597.04,3.34798593]
[1742043941877,0.33417992,598.48,597.04,3.34798593]
[1742043942082,0.28237788,598.47,597.04,3.34798593]
[1742043942282,0.33419109,598.46,597.04,3.34798593]
[1742043942477,0.28237788,598.45,597.04,3.34798593]
[1742043942680,0.33420225,598.44,597.04,3.34798593]
[1742043942876,0.28237788,598.43,597.04,3.34798593]
[1742043943284,0.28237788,598.43,597.04,5.16298593]
[1742043943584,0.61658572,598.43,597.04,5.16298593]
[1742043943787,0.28237788,598.42,597.04,5.16298593]
[1742043945479,0.28237788,598.42,597.04,6.60798593]
[1742043948288,0.28235523,598.41,597.04,6.60798593]
[1742043948479,0.28235523,598.42,597.04,6.60798593]
[1742043949082,0.28235523,598.42,597.04,7.92898593]
[1742043950190,0.33420784,598.43,597.04,9.14798593]
[1742043950388,0.28235213,598.42,597.04,9.14798593]
[1742043953390,0.28235213,598.41,597.04,10.62498593]
[1742043953585,0.28235213,598.4,597.05,0.3075166]
[1742043953786,0.28235213,598.39,597.06,0.3349747]
[1742043953986,0.28235213,598.38,597.06,0.3349747]
[1742043954391,0.28235213,598.37,597.06,0.3349747]
[1742043954591,0.28235213,598.36,597.06,0.3349747]
[1742043954792,0.28235213,598.35,597.06,0.3349747]
[1742043954986,0.28235213,598.34,597.06,0.3349747]
[1742043955186,2.55294295,598.37,597.06,0.3349747]
[1742043955187,0.28235213,598.33,597.06,0.3349747]
[1742043955386,2.55294295,598.37,597.07,0.3075095]
[1742043955591,0.28236093,598.36,597.08,0.33496348]
[1742043955794,2.55294295,598.37,597.08,0.33496348]
[1742043955992,0.28236042,598.36,597.09,0.30750397]
[1742043956183,2.55294295,598.37,597.09,0.30750397]
[1742043956184,0.28236042,598.35,597.1,0.33495226]
[1742043956389,0.28236042,598.34,597.1,0.33495226]
[1742043956589,2.55294295,598.37,597.1,0.33495226]
[1742043956590,0.28236042,598.33,597.1,0.33495226]
[1742043956790,0.28236042,598.32,597.1,0.33495226]
[1742043956990,2.55294295,598.27,597.11,0.30750197]
[1742043957190,0.28236042,598.26,597.12,0.33494105]
[1742043957791,2.55294295,598.27,597.13,1.132]
[1742043958094,2.55294295,598.27,597.14,0.33492983]
[1742043958095,0.28236648,598.26,597.14,0.33492983]
[1742043958487,0.28236648,598.32,597.14,0.33492983]
[1742043960499,0.28236648,598.36,597.14,0.33492983]
[1742043960792,0.28236648,598.35,597.14,0.33492983]
[1742043960998,2.45637499,598.35,597.15,1.471]
[1742043961298,0.28236648,598.34,597.16,0.33491861]
[1742043961797,2.45637499,598.34,597.16,0.33491861]
[1742043961998,0.28236648,598.33,597.16,0.33491861]
[1742043962998,0.28236648,598.33,597.16,0.52791861]
[1742043964497,0.28236648,598.33,597.16,1.92991861]
[1742043966696,0.28236648,598.33,597.16,3.05391861]
[1742043966896,0.28234885,598.32,597.16,3.05391861]
[1742043967093,0.28234885,598.33,597.16,3.05391861]
[1742043967295,0.28234885,598.32,597.16,3.05391861]
[1742043967598,0.28234885,598.31,597.16,3.05391861]
[1742043967799,2.55294295,598.34,597.16,3.05391861]
[1742043967800,0.28234885,598.33,597.16,3.05391861]
[1742043968099,0.28234885,598.32,597.16,4.51191861]
[1742043968300,0.28234885,598.42,597.16,4.51191861]
[1742043968501,0.28234885,598.41,597.16,4.51191861]
[1742043968696,0.28234885,598.4,597.16,4.51191861]
[1742043969001,2.55294295,598.37,597.16,4.51191861]
[1742043969201,0.28234885,598.36,597.16,4.51191861]
[1742043970599,6.91978258,598.36,597.16,4.51191861]
[1742043970798,2.45606671,598.35,597.16,4.51191861]
[1742043971003,2.17371786,598.35,597.16,4.51191861]
[1742043971199,0.28234712,598.34,597.16,4.51191861]
[1742043972107,0.28234712,598.34,597.16,6.12791861]
[1742043973108,0.28234712,598.36,597.16,6.12791861]
[1742043973405,0.28234712,598.35,597.16,7.70691861]
[1742043973601,0.28234712,598.36,597.16,7.70691861]
[1742043973807,0.28234712,598.35,597.16,7.70691861]
[1742043974001,0.28234712,598.37,597.16,7.70691861]
[1742043974204,0.28234712,598.34,597.16,7.70691861]
[1742043974505,0.28235673,598.33,597.16,7.70691861]
[1742043974706,0.28235673,598.37,597.16,7.70691861]
[1742043974905,0.28235673,598.36,597.16,7.70691861]
[1742043975104,2.55294295,598.38,597.16,7.70691861]
[1742043975105,0.28235673,598.37,597.16,7.70691861]
[1742043975907,0.28235673,598.42,597.16,7.70691861]
[1742043976109,0.28235673,598.41,597.16,7.70691861]
[1742043976301,0.28235673,598.4,597.16,7.70691861]
[1742043976502,0.28235673,598.39,597.16,7.70691861]
[1742043976705,0.28235673,598.38,597.16,7.70691861]
[1742043976905,0.33420784,598.43,597.16,7.70691861]
[1742043976906,0.28235673,598.42,597.16,7.70691861]
[1742043977101,0.28235673,598.41,597.16,7.70691861]
[1742043977303,0.28235673,598.42,597.16,7.70691861]
[1742043978809,0.28235673,598.42,597.16,8.70691861]
[1742043979902,0.28235176,598.41,597.16,8.70691861]
[1742043980105,0.28235176,598.42,597.16,8.70691861]
[1742043980302,0.28235176,598.41,597.16,8.70691861]
[1742043980501,0.28235176,598.42,597.16,8.70691861]
[1742043980707,0.28235176,598.41,597.16,8.70691861]
[1742043980909,0.28235176,598.42,597.16,8.70691861]
[1742043981211,0.28235176,598.41,597.16,8.70691861]
[1742043981405,0.28235176,598.42,597.16,8.70691861]